Workbook

Sheet Feuil1
B2: f en Hz | D2: Umax en V
B3: 500 | D3: =Z3/10 -> 6.5 | Z3: 65
B6: 1000 | D6: 10
H17: Représentation fré
B21: 0 | D21: 0

Sheet Feuil2 (hidden)
A1: graphe temporel | D1: graphe fréquentiel
A2: dt= | B2: =IF(f_1=0,0.002,0.00192042*1/f_1+0.000007944) -> 1.178484e-05
A3: t | B3: u | D3: f | E3: U
A4: 0 | B4: =IF(f_1=0,U1max,U1max*SIN(2*PI()*f_1*t)) -> 0 | D4: =f_1 -> 500 | E4: 0
A5: =A4+dt -> 1.178484e-05 | B5: 0.2405956105 | D5: =f_1 -> 500 | E5: =U1max -> 6.5
A6: 2.356968e-05 | B6: 0.4808614708
A7: 3.535452e-05 | B7: 0.7204682823
A8: 4.713936e-05 | B8: 0.95908765
A9: 5.89242e-05 | B9: 1.196392532
A10: 7.070904e-05 | B10: 1.432057689
A11: 8.249388e-05 | B11: 1.665760127
A12: 9.427872e-05 | B12: 1.897179543
A13: 0.00010606356 | B13: 2.125998764
A14: 0.0001178484 | B14: 2.35190418
A15: 0.00012963324 | B15: 2.574586175
A16: 0.00014141808 | B16: 2.793739548
A17: 0.00015320292 | B17: 3.009063939
A18: 0.00016498776 | B18: 3.220264232
A19: 0.0001767726 | B19: 3.427050965
A20: 0.00018855744 | B20: 3.629140726
A21: 0.00020034228 | B21: 3.826256537
A22: 0.00021212712 | B22: 4.01812824
A23: 0.00022391196 | B23: 4.204492864
A24: 0.0002356968 | B24: 4.385094986
A25: 0.00024748164 | B25: 4.559687079
A26: 0.00025926648 | B26: 4.728029855
A27: 0.00027105132 | B27: 4.889892591
A28: 0.00028283616 | B28: 5.045053444
A29: 0.000294621 | B29: 5.193299756
A30: 0.00030640584 | B30: 5.334428349
A31: 0.00031819068 | B31: 5.468245796
A32: 0.00032997552 | B32: 5.594568694
A33: 0.00034176036 | B33: 5.713223909
A34: 0.0003535452 | B34: 5.824048818
A35: 0.00036533004 | B35: 5.926891528
A36: 0.00037711488 | B36: 6.021611087
A37: 0.00038889972 | B37: 6.108077678
A38: 0.00040068456 | B38: 6.186172792
A39: 0.0004124694 | B39: 6.255789395
A40: 0.00042425424 | B40: 6.316832074
A41: 0.00043603908 | B41: 6.369217167
A42: 0.00044782392 | B42: 6.412872875
A43: 0.00045960876 | B43: 6.447739368
A44: 0.0004713936 | B44: 6.473768858
A45: 0.00048317844 | B45: 6.49092567
A46: 0.00049496328 | B46: 6.49918629
A47: 0.00050674812 | B47: 6.498539396
A48: 0.00051853296 | B48: 6.488985875
A49: 0.0005303178 | B49: 6.470538821
A50: 0.00054210264 | B50: 6.443223515
A51: 0.00055388748 | B51: 6.407077396
A52: 0.00056567232 | B52: 6.362150004
A53: 0.00057745716 | B53: 6.308502915
A54: 0.000589242 | B54: 6.246209654
A55: 0.00060102684 | B55: 6.175355599
A56: 0.00061281168 | B56: 6.096037858
A57: 0.00062459652 | B57: 6.008365143
A58: 0.00063638136 | B58: 5.912457612
A59: 0.0006481662 | B59: 5.808446714
A60: 0.00065995104 | B60: 5.696475001
A61: 0.00067173588 | B61: 5.576695936
A62: 0.00068352072 | B62: 5.449273685
A63: 0.00069530556 | B63: 5.314382886
A64: 0.0007070904 | B64: 5.172208416
A65: 0.00071887524 | B65: 5.022945132
A66: 0.00073066008 | B66: 4.866797609
A67: 0.00074244492 | B67: 4.703979856
A68: 0.00075422976 | B68: =IF(f_1=0,U1max,U1max*SIN(2*PI()*f_1*t)) -> 4.534715025
A69: =A68+dt -> 0.0007660146 | B69: 4.359235102
A70: 0.00077779944 | B70: 4.177780593
A71: 0.00078958428 | B71: 3.990600193
A72: 0.00080136912 | B72: 3.797950442
A73: 0.00081315396 | B73: 3.600095378
A74: 0.0008249388 | B74: 3.397306174
A75: 0.00083672364 | B75: 3.189860764
A76: 0.00084850848 | B76: 2.978043463
A77: 0.00086029332 | B77: 2.76214458
A78: 0.00087207816 | B78: 2.542460017
A79: 0.000883863 | B79: 2.319290865
A80: 0.00089564784 | B80: 2.092942989
A81: 0.00090743268 | B81: 1.863726612
A82: 0.00091921752 | B82: 1.63195589
A83: 0.00093100236 | B83: 1.397948476
A84: 0.0009427872 | B84: 1.162025093
A85: 0.00095457204 | B85: 0.924509087
A86: 0.00096635688 | B86: 0.6857259871
A87: 0.00097814172 | B87: 0.4460030598
A88: 0.00098992656 | B88: 0.2056688592
A89: 0.0010017114 | B89: -0.03494722247
A90: 0.00101349624 | B90: -0.275515407
A91: 0.00102528108 | B91: -0.5157059815
A92: 0.00103706592 | B92: -0.755189751
A93: 0.00104885076 | B93: -0.9936384888
A94: 0.0010606356 | B94: -1.230725387
A95: 0.00107242044 | B95: -1.466125505
A96: 0.00108420528 | B96: -1.699516212
A97: 0.00109599012 | B97: -1.930577632
A98: 0.00110777496 | B98: -2.158993084
A99: 0.0011195598 | B99: -2.38444951
A100: 0.00113134464 | B100: -2.606637908
A101: 0.00114312948 | B101: -2.825253758
A102: 0.00115491432 | B102: -3.039997432
A103: 0.00116669916 | B103: -3.250574613
A104: 0.001178484 | B104: -3.456696691
A105: 0.00119026884 | B105: -3.658081166
A106: 0.00120205368 | B106: -3.854452026
A107: 0.00121383852 | B107: -4.045540136
A108: 0.00122562336 | B108: -4.231083596
A109: 0.0012374082 | B109: -4.41082811
A110: 0.00124919304 | B110: -4.584527327
A111: 0.00126097788 | B111: -4.751943182
A112: 0.00127276272 | B112: -4.912846221
A113: 0.00128454756 | B113: -5.067015918
A114: 0.0012963324 | B114: -5.214240975
A115: 0.00130811724 | B115: -5.35431961
A116: 0.00131990208 | B116: -5.487059838
A117: 0.00133168692 | B117: -5.61227973
A118: 0.00134347176 | B118: -5.729807666
A119: 0.0013552566 | B119: -5.839482566
A120: 0.00136704144 | B120: -5.941154115
A121: 0.00137882628 | B121: -6.034682966
A122: 0.00139061112 | B122: -6.119940932
A123: 0.00140239596 | B123: -6.196811162
A124: 0.0014141808 | B124: -6.2651883
A125: 0.00142596564 | B125: -6.324978633
A126: 0.00143775048 | B126: -6.376100214
A127: 0.00144953532 | B127: -6.418482978
A128: 0.00146132016 | B128: -6.452068836
A129: 0.001473105 | B129: -6.476811758
A130: 0.00148488984 | B130: -6.492677832
A131: 0.00149667468 | B131: -6.499645312
A132: 0.00150845952 | B132: =IF(f_1=0,U1max,U1max*SIN(2*PI()*f_1*t)) -> -6.49770465
A133: =A132+dt -> 0.00152024436 | B133: -6.486858504
A134: 0.0015320292 | B134: -6.46712174
A135: 0.00154381404 | B135: -6.438521409
A136: 0.00155559888 | B136: -6.401096709
A137: 0.00156738372 | B137: -6.354898932
A138: 0.00157916856 | B138: -6.299991396
A139: 0.0015909534 | B139: -6.236449354
A140: 0.00160273824 | B140: -6.164359895
A141: 0.00161452308 | B141: -6.083821821
A142: 0.00162630792 | B142: -5.994945515
A143: 0.00163809276 | B143: -5.897852786
A144: 0.0016498776 | B144: -5.792676706
A145: 0.00166166244 | B145: -5.679561425
A146: 0.00167344728 | B146: -5.558661973
A147: 0.00168523212 | B147: -5.430144052
A148: 0.00169701696 | B148: -5.294183801
A149: 0.0017088018 | B149: -5.150967563
A150: 0.00172058664 | B150: -5.000691623
A151: 0.00173237148 | B151: -4.843561943
A152: 0.00174415632 | B152: -4.67979388
A153: 0.00175594116 | B153: -4.509611886
A154: 0.001767726 | B154: -4.333249206
A155: 0.00177951084 | B155: -4.150947556
A156: 0.00179129568 | B156: -3.962956789
A157: 0.00180308052 | B157: -3.76953456
A158: 0.00181486536 | B158: -3.570945963
A159: 0.0018266502 | B159: -3.367463177
A160: 0.00183843504 | B160: -3.159365086
A161: 0.00185021988 | B161: -2.946936901
A162: 0.00186200472 | B162: -2.730469767
A163: 0.00187378956 | B163: -2.510260365
A164: 0.0018855744 | B164: -2.286610505
A165: 0.00189735924 | B165: -2.059826712
A166: 0.00190914408 | B166: -1.830219806
A167: 0.00192092892 | B167: -1.598104478
A168: 0.00193271376 | B168: -1.363798854
A169: 0.0019444986 | B169: -1.127624064
A170: 0.00195628344 | B170: -0.8899037992
A171: 0.00196806828 | B171: -0.6509638697
A172: 0.00197985312 | B172: -0.4111317562
A173: 0.00199163796 | B173: -0.1707361627
A174: 0.0020034228 | B174: 0.06989343472
A175: 0.00201520764 | B175: 0.3104272391
A176: 0.00202699248 | B176: 0.5505355848
A177: 0.00203877732 | B177: 0.7898893894
A178: 0.00205056216 | B178: 1.028160605
A179: 0.002062347 | B179: 1.265022666
A180: 0.00207413184 | B180: 1.500150939
A181: 0.00208591668 | B181: 1.733223169
A182: 0.00209770152 | B182: 1.963919915
A183: 0.00210948636 | B183: 2.191924994
A184: 0.0021212712 | B184: 2.416925912
A185: 0.00213305604 | B185: 2.638614293
A186: 0.00214484088 | B186: 2.856686298
A187: 0.00215662572 | B187: 3.070843048
A188: 0.00216841056 | B188: 3.280791029
A189: 0.0021801954 | B189: 3.486242495
A190: 0.00219198024 | B190: 3.686915862
A191: 0.00220376508 | B191: 3.882536095
A192: 0.00221554992 | B192: 4.072835087
A193: 0.00222733476 | B193: 4.257552021
A194: 0.0022391196 | B194: 4.436433731
A195: 0.00225090444 | B195: 4.60923505
A196: 0.00226268928 | B196: =IF(f_1=0,U1max,U1max*SIN(2*PI()*f_1*t)) -> 4.775719144
A197: =A196+dt -> 0.00227447412 | B197: 4.935657836
A198: 0.00228625896 | B198: 5.088831921
A199: 0.0022980438 | B199: 5.235031465
A200: 0.00230982864 | B200: 5.374056094
... 804 more rows
